[Event "*** SCC Grand Prix: Titled Tuesday Blitz"]
[Site "Chess.com"]
[Date "2020.08.11"]
[Round "8"]
[White "xamax2000"]
[Black "Artur0208"]
[Result "1-0"]
[WhiteElo "2651"]
[BlackElo "2746"]
[TimeControl "180+1"]
[EndTime "11:31:58 PDT"]
[Termination "xamax2000 won by checkmate"]

1. e4 {[%clk 0:03:00.9]} 1... e5 {[%clk 0:01:36.6]} 2. Nf3 {[%clk 0:03:00.3]}
2... Nc6 {[%clk 0:01:37.2]} 3. Bb5 {[%clk 0:03:00.6]} 3... a6 {[%clk 0:01:36.3]}
4. Ba4 {[%clk 0:03:01.1]} 4... g6 {[%clk 0:01:36.8]} 5. d4 {[%clk 0:03:00.2]}
5... exd4 {[%clk 0:01:36.6]} 6. Nxd4 {[%clk 0:03:01.1]} 6... Bg7 {[%clk
0:01:36.8]} 7. Nxc6 {[%clk 0:03:01.7]} 7... bxc6 {[%clk 0:01:35.3]} 8. Nc3
{[%clk 0:03:01.3]} 8... Ne7 {[%clk 0:01:35.9]} 9. Be3 {[%clk 0:03:00.4]} 9...
O-O {[%clk 0:01:36.2]} 10. Qd2 {[%clk 0:03:00.4]} 10... Rb8 {[%clk 0:01:35.4]}
11. Bb3 {[%clk 0:02:59.7]} 11... d6 {[%clk 0:01:35.1]} 12. h4 {[%clk 0:02:57.8]}
12... h5 {[%clk 0:01:30.2]} 13. O-O-O {[%clk 0:02:57.7]} 13... Be6 {[%clk
0:01:29.7]} 14. f3 {[%clk 0:02:56.8]} 14... c5 {[%clk 0:01:27.9]} 15. g4 {[%clk
0:02:22.3]} 15... c4 {[%clk 0:01:10.2]} 16. Ba4 {[%clk 0:02:21.9]} 16... hxg4
{[%clk 0:01:02]} 17. h5 {[%clk 0:02:21.5]} 17... gxf3 {[%clk 0:01:02.3]} 18. Bh6
{[%clk 0:02:08.5]} 18... f5 {[%clk 0:00:16.4]} 19. hxg6 {[%clk 0:02:00.5]} 19...
f4 {[%clk 0:00:14.1]} 20. Bxg7 {[%clk 0:02:00.5]} 20... Kxg7 {[%clk 0:00:15]}
21. Rh7+ {[%clk 0:02:00.8]} 21... Kxg6 {[%clk 0:00:08.7]} 22. Qh2 {[%clk
0:02:01.3]} 22... Ng8 {[%clk 0:00:07.2]} 23. Rg1+ {[%clk 0:01:59.4]} 23... Kf6
{[%clk 0:00:07.1]} 24. Qxf4+ {[%clk 0:01:59.7]} 24... Bf5 {[%clk 0:00:06.2]} 25.
Qxf5# {[%clk 0:02:00.1]} 1-0

[Event "*** SCC Grand Prix: Titled Tuesday Blitz"]
[Site "Chess.com"]
[Date "2020.08.11"]
[Round "8"]
[White "tteshan"]
[Black "TurboSteen"]
[Result "1-0"]
[WhiteElo "2237"]
[BlackElo "2008"]
[TimeControl "180+1"]
[EndTime "11:32:22 PDT"]
[Termination "tteshan won by resignation"]

1. e4 {[%clk 0:02:29.1]} 1... e6 {[%clk 0:02:57.6]} 2. d4 {[%clk 0:02:26.8]}
2... d5 {[%clk 0:02:54.4]} 3. Nd2 {[%clk 0:02:27.1]} 3... Nf6 {[%clk 0:02:50]}
4. e5 {[%clk 0:02:24.5]} 4... Nfd7 {[%clk 0:02:48.2]} 5. Bd3 {[%clk 0:02:25]}
5... c5 {[%clk 0:02:44.1]} 6. c3 {[%clk 0:02:25.1]} 6... Nc6 {[%clk 0:02:41]} 7.
Ne2 {[%clk 0:02:25]} 7... cxd4 {[%clk 0:02:35.8]} 8. cxd4 {[%clk 0:02:25]} 8...
f6 {[%clk 0:02:35.1]} 9. exf6 {[%clk 0:02:25.9]} 9... Nxf6 {[%clk 0:02:33]} 10.
Nf3 {[%clk 0:02:25.8]} 10... Bd6 {[%clk 0:02:31.8]} 11. O-O {[%clk 0:02:25.7]}
11... Qc7 {[%clk 0:02:30]} 12. Bg5 {[%clk 0:02:15.7]} 12... O-O {[%clk
0:02:26.8]} 13. Re1 {[%clk 0:02:15]} 13... Ng4 {[%clk 0:02:15.3]} 14. h3 {[%clk
0:02:12.6]} 14... Bh2+ {[%clk 0:02:09.6]} 15. Kf1 {[%clk 0:02:12.4]} 15... Nxf2
{[%clk 0:01:24.6]} 16. Kxf2 {[%clk 0:02:10.6]} 16... e5 {[%clk 0:01:22.9]} 17.
dxe5 {[%clk 0:02:02.8]} 17... Nxe5 {[%clk 0:01:18.9]} 18. Qb3 {[%clk 0:01:55.3]}
18... Nxf3 {[%clk 0:01:01.9]} 19. Qxd5+ {[%clk 0:01:55]} 19... Kh8 {[%clk
0:01:01.7]} 20. gxf3 {[%clk 0:01:54]} 20... Bxh3 {[%clk 0:00:58]} 21. Rh1 {[%clk
0:01:53.1]} 21... Rad8 {[%clk 0:00:49.8]} 22. Qe4 {[%clk 0:01:52.5]} 22... Bf5
{[%clk 0:00:48.1]} 23. Qh4 {[%clk 0:01:48.8]} 23... Bxd3 {[%clk 0:00:38.6]} 24.
Qxh2 {[%clk 0:01:47.8]} 24... h6 {[%clk 0:00:34.6]} 25. Bxh6 {[%clk 0:01:43.1]}
25... Bxe2 {[%clk 0:00:23.4]} 26. Bxg7+ {[%clk 0:01:30.3]} 26... Kxg7 {[%clk
0:00:18.4]} 27. Qxc7+ {[%clk 0:01:30.4]} 1-0

[Event "*** SCC Grand Prix: Titled Tuesday Blitz"]
[Site "Chess.com"]
[Date "2020.08.11"]
[Round "8"]
[White "LaPorfia"]
[Black "GlennTipton"]
[Result "0-1"]
[WhiteElo "2246"]
[BlackElo "2436"]
[TimeControl "180+1"]
[EndTime "11:32:31 PDT"]
[Termination "GlennTipton won on time"]

1. d4 {[%clk 0:03:00.9]} 1... Nf6 {[%clk 0:02:57.8]} 2. Nf3 {[%clk 0:03:00.7]}
2... d5 {[%clk 0:02:57.3]} 3. Bf4 {[%clk 0:02:59.7]} 3... c5 {[%clk 0:02:56.8]}
4. e3 {[%clk 0:02:59.5]} 4... Nc6 {[%clk 0:02:57.1]} 5. c3 {[%clk 0:02:59.1]}
5... Qb6 {[%clk 0:02:57.1]} 6. Qb3 {[%clk 0:02:58.5]} 6... c4 {[%clk 0:02:57.5]}
7. Qxb6 {[%clk 0:02:58.4]} 7... axb6 {[%clk 0:02:56]} 8. Na3 {[%clk 0:02:58.8]}
8... e5 {[%clk 0:02:55.7]} 9. Nb5 {[%clk 0:02:41.9]} 9... Ra5 {[%clk 0:02:55.2]}
10. Nc7+ {[%clk 0:02:36.7]} 10... Kd7 {[%clk 0:02:47.7]} 11. dxe5 {[%clk
0:01:52.2]} 11... Nh5 {[%clk 0:02:44.4]} 12. Nxd5 {[%clk 0:01:51.8]} 12... Rxd5
{[%clk 0:02:43.1]} 13. Bxc4 {[%clk 0:01:51.9]} 13... Ra5 {[%clk 0:02:30.4]} 14.
Bxf7 {[%clk 0:01:51.4]} 14... Nxf4 {[%clk 0:02:28.9]} 15. exf4 {[%clk
0:01:52.3]} 15... Ke7 {[%clk 0:02:24.2]} 16. Bb3 {[%clk 0:01:45.4]} 16... Be6
{[%clk 0:02:18.9]} 17. Bxe6 {[%clk 0:01:35.3]} 17... Kxe6 {[%clk 0:02:18.7]} 18.
O-O {[%clk 0:01:27.5]} 18... Be7 {[%clk 0:02:15.8]} 19. a3 {[%clk 0:01:26.2]}
19... Rd5 {[%clk 0:02:12]} 20. g4 {[%clk 0:00:48.6]} 20... g6 {[%clk 0:02:08.5]}
21. Rad1 {[%clk 0:00:43.6]} 21... Rxd1 {[%clk 0:02:01.4]} 22. Rxd1 {[%clk
0:00:41.4]} 22... Rd8 {[%clk 0:01:55.1]} 23. Rxd8 {[%clk 0:00:29.1]} 23... Bxd8
{[%clk 0:01:55]} 24. h4 {[%clk 0:00:27.1]} 24... h5 {[%clk 0:01:49.2]} 0-1

[Event "*** SCC Grand Prix: Titled Tuesday Blitz"]
[Site "Chess.com"]
[Date "2020.08.11"]
[Round "8"]
[White "blitzking1729"]
[Black "amatatanav"]
[Result "1-0"]
[WhiteElo "2611"]
[BlackElo "2459"]
[TimeControl "180+1"]
[EndTime "11:32:35 PDT"]
[Termination "blitzking1729 won on time"]

1. c4 {[%clk 0:03:00.9]} 1... e6 {[%clk 0:02:57.7]} 2. Nc3 {[%clk 0:02:58.9]}
2... d5 {[%clk 0:02:56.5]} 3. cxd5 {[%clk 0:02:58.5]} 3... exd5 {[%clk
0:02:57.4]} 4. d4 {[%clk 0:02:59.3]} 4... Nf6 {[%clk 0:02:57.2]} 5. Bg5 {[%clk
0:02:58.9]} 5... Be7 {[%clk 0:02:57.4]} 6. e3 {[%clk 0:02:59.2]} 6... h6 {[%clk
0:02:57.1]} 7. Bh4 {[%clk 0:02:58.7]} 7... O-O {[%clk 0:02:56.8]} 8. Bd3 {[%clk
0:02:58.3]} 8... c6 {[%clk 0:02:54.5]} 9. Qc2 {[%clk 0:02:56.9]} 9... Re8 {[%clk
0:02:50.1]} 10. Nge2 {[%clk 0:02:56.2]} 10... Nbd7 {[%clk 0:02:49]} 11. O-O
{[%clk 0:02:55.6]} 11... Ne4 {[%clk 0:02:48]} 12. Bxe7 {[%clk 0:02:54.2]} 12...
Qxe7 {[%clk 0:02:48.9]} 13. Rab1 {[%clk 0:02:51.1]} 13... Ndf6 {[%clk
0:02:43.8]} 14. b4 {[%clk 0:02:49.9]} 14... Bf5 {[%clk 0:02:43.1]} 15. b5 {[%clk
0:02:48.3]} 15... Nxc3 {[%clk 0:02:30.5]} 16. Nxc3 {[%clk 0:02:46.2]} 16... Bxd3
{[%clk 0:02:26.8]} 17. Qxd3 {[%clk 0:02:45.8]} 17... c5 {[%clk 0:02:02.5]} 18.
dxc5 {[%clk 0:02:44.6]} 18... Qxc5 {[%clk 0:02:03.4]} 19. Rfd1 {[%clk
0:02:38.6]} 19... Rad8 {[%clk 0:01:33.9]} 20. Ne2 {[%clk 0:02:23.9]} 20... Ne4
{[%clk 0:01:28.1]} 21. Rbc1 {[%clk 0:02:22]} 21... Qd6 {[%clk 0:01:18.7]} 22.
Nf4 {[%clk 0:02:15.1]} 22... Nf6 {[%clk 0:00:40.8]} 23. a4 {[%clk 0:02:09.5]}
23... Re4 {[%clk 0:00:38.1]} 24. Qc2 {[%clk 0:02:03.1]} 24... g5 {[%clk
0:00:28]} 25. Nxd5 {[%clk 0:02:01]} 25... Nxd5 {[%clk 0:00:11.7]} 26. Qxe4
{[%clk 0:02:00]} 26... Qa3 {[%clk 0:00:03.3]} 27. Qd3 {[%clk 0:01:45.9]} 27...
Qxa4 {[%clk 0:00:01.6]} 28. e4 {[%clk 0:01:44.8]} 1-0

[Event "*** SCC Grand Prix: Titled Tuesday Blitz"]
[Site "Chess.com"]
[Date "2020.08.11"]
[Round "8"]
[White "AleksanderHnydiuk"]
[Black "AGW2016"]
[Result "1-0"]
[WhiteElo "2543"]
[BlackElo "2324"]
[TimeControl "180+1"]
[EndTime "11:32:35 PDT"]
[Termination "AleksanderHnydiuk won by resignation"]

1. e4 {[%clk 0:02:51.3]} 1... c5 {[%clk 0:02:59.5]} 2. Nf3 {[%clk 0:02:50.3]}
2... d6 {[%clk 0:02:59.3]} 3. d4 {[%clk 0:02:50.1]} 3... cxd4 {[%clk 0:03:00.2]}
4. Nxd4 {[%clk 0:02:50.7]} 4... Nf6 {[%clk 0:03:00.7]} 5. Nc3 {[%clk 0:02:50.8]}
5... Nc6 {[%clk 0:03:01.6]} 6. f3 {[%clk 0:02:48.6]} 6... e5 {[%clk 0:02:56.8]}
7. Nb3 {[%clk 0:02:48.5]} 7... Be7 {[%clk 0:02:53.8]} 8. Be3 {[%clk 0:02:48.1]}
8... Be6 {[%clk 0:02:53.8]} 9. Qd2 {[%clk 0:02:48]} 9... O-O {[%clk 0:02:54.4]}
10. O-O-O {[%clk 0:02:45.8]} 10... a5 {[%clk 0:02:55]} 11. Bb5 {[%clk
0:02:31.4]} 11... Rc8 {[%clk 0:02:44.5]} 12. Kb1 {[%clk 0:02:26.7]} 12... Nb4
{[%clk 0:01:53.8]} 13. a3 {[%clk 0:02:09.2]} 13... Na6 {[%clk 0:01:54]} 14. Na4
{[%clk 0:01:51.2]} 14... Bc4 {[%clk 0:01:50.2]} 15. Bxc4 {[%clk 0:01:38.9]}
15... Rxc4 {[%clk 0:01:48.7]} 16. Nb6 {[%clk 0:01:37.9]} 16... Rc6 {[%clk
0:01:48.7]} 17. Qxa5 {[%clk 0:01:31.6]} 17... Nd7 {[%clk 0:01:43.5]} 18. Nd5
{[%clk 0:01:26.8]} 18... Bg5 {[%clk 0:01:32.1]} 19. Qxd8 {[%clk 0:01:22.6]}
19... Bxd8 {[%clk 0:01:24.3]} 20. Rd2 {[%clk 0:01:15]} 20... f5 {[%clk
0:01:22.3]} 21. exf5 {[%clk 0:01:10.6]} 21... Rxf5 {[%clk 0:01:21.9]} 22. Rhd1
{[%clk 0:01:11.1]} 22... Nac5 {[%clk 0:01:19.3]} 23. Nxc5 {[%clk 0:01:05.6]}
23... Nxc5 {[%clk 0:01:20.2]} 24. Nb4 {[%clk 0:00:54.3]} 24... Rc8 {[%clk
0:01:16.8]} 25. Rxd6 {[%clk 0:00:53.7]} 25... Be7 {[%clk 0:01:17.7]} 26. Bxc5
{[%clk 0:00:36.5]} 26... Rxc5 {[%clk 0:01:08.5]} 27. Rd7 {[%clk 0:00:36.4]}
27... Kf7 {[%clk 0:01:07.7]} 28. Nd5 {[%clk 0:00:31.2]} 1-0

[Event "*** SCC Grand Prix: Titled Tuesday Blitz"]
[Site "Chess.com"]
[Date "2020.08.11"]
[Round "8"]
[White "Evgeny81"]
[Black "korkmaz16"]
[Result "1-0"]
[WhiteElo "2691"]
[BlackElo "2345"]
[TimeControl "180+1"]
[EndTime "11:32:39 PDT"]
[Termination "Evgeny81 won by resignation"]

1. e4 {[%clk 0:03:00.9]} 1... c5 {[%clk 0:02:57]} 2. d4 {[%clk 0:03:00.6]} 2...
cxd4 {[%clk 0:02:53]} 3. c3 {[%clk 0:03:01.1]} 3... d5 {[%clk 0:02:49.8]} 4.
exd5 {[%clk 0:02:58.7]} 4... Qxd5 {[%clk 0:02:49.5]} 5. Nf3 {[%clk 0:02:57.9]}
5... Nc6 {[%clk 0:02:46.4]} 6. Be2 {[%clk 0:02:57.3]} 6... d3 {[%clk 0:02:38.3]}
7. Bxd3 {[%clk 0:02:56.3]} 7... Bg4 {[%clk 0:02:38.2]} 8. Be2 {[%clk 0:02:46.2]}
8... Qxd1+ {[%clk 0:02:37]} 9. Bxd1 {[%clk 0:02:47.1]} 9... e5 {[%clk 0:02:31]}
10. Be3 {[%clk 0:02:44.2]} 10... f6 {[%clk 0:02:26.9]} 11. O-O {[%clk
0:02:40.6]} 11... O-O-O {[%clk 0:02:24.2]} 12. Nbd2 {[%clk 0:02:38.3]} 12...
Nge7 {[%clk 0:02:21.5]} 13. h3 {[%clk 0:02:24.5]} 13... Be6 {[%clk 0:02:16.8]}
14. Ne4 {[%clk 0:02:19.5]} 14... Nd5 {[%clk 0:02:14.9]} 15. Bd2 {[%clk
0:02:17.6]} 15... Nf4 {[%clk 0:02:10.6]} 16. Bxf4 {[%clk 0:02:16.1]} 16... exf4
{[%clk 0:02:09.8]} 17. Re1 {[%clk 0:02:16.3]} 17... Bd5 {[%clk 0:01:41.2]} 18.
Bb3 {[%clk 0:02:14.7]} 18... Bxb3 {[%clk 0:01:36.9]} 19. axb3 {[%clk 0:02:15.6]}
19... a6 {[%clk 0:01:32.6]} 20. Ned2 {[%clk 0:02:01.3]} 20... Bc5 {[%clk
0:01:26.9]} 21. b4 {[%clk 0:01:57.1]} 21... Ba7 {[%clk 0:01:23.1]} 22. Re4
{[%clk 0:01:55.6]} 22... g5 {[%clk 0:01:21.4]} 23. Re6 {[%clk 0:01:54.5]} 23...
Rhf8 {[%clk 0:01:04.1]} 24. b5 {[%clk 0:01:49.2]} 24... Nb8 {[%clk 0:00:43.5]}
25. b6 {[%clk 0:01:47.6]} 25... Bxb6 {[%clk 0:00:40.7]} 26. Rxb6 {[%clk
0:01:47.4]} 26... Nc6 {[%clk 0:00:40.5]} 27. Rb3 {[%clk 0:01:35]} 27... Rfe8
{[%clk 0:00:35.2]} 28. Nc4 {[%clk 0:01:30]} 28... h5 {[%clk 0:00:33.6]} 29. Re1
{[%clk 0:01:28]} 29... g4 {[%clk 0:00:33]} 30. Rxe8 {[%clk 0:01:24.4]} 30...
Rxe8 {[%clk 0:00:30.1]} 31. Nd6+ {[%clk 0:01:24.7]} 31... Kd7 {[%clk 0:00:27.7]}
32. Nxe8 {[%clk 0:01:25.6]} 32... gxf3 {[%clk 0:00:28]} 33. Nxf6+ {[%clk
0:01:23.3]} 33... Ke6 {[%clk 0:00:27.7]} 34. Rxb7 {[%clk 0:01:21.1]} 1-0

[Event "*** SCC Grand Prix: Titled Tuesday Blitz"]
[Site "Chess.com"]
[Date "2020.08.11"]
[Round "8"]
[White "Paladin61"]
[Black "amintabatabaei"]
[Result "0-1"]
[WhiteElo "2661"]
[BlackElo "3025"]
[TimeControl "180+1"]
[EndTime "11:32:41 PDT"]
[Termination "amintabatabaei won on time"]

1. b3 {[%clk 0:03:00.9]} 1... Nf6 {[%clk 0:02:57.9]} 2. Bb2 {[%clk 0:03:01.8]}
2... g6 {[%clk 0:02:58.8]} 3. Bxf6 {[%clk 0:03:01]} 3... exf6 {[%clk 0:02:59.7]}
4. c4 {[%clk 0:03:00.7]} 4... d5 {[%clk 0:02:59.7]} 5. cxd5 {[%clk 0:03:00.5]}
5... Qxd5 {[%clk 0:03:00.6]} 6. Nc3 {[%clk 0:03:00.8]} 6... Qa5 {[%clk
0:03:00.7]} 7. a3 {[%clk 0:03:01.3]} 7... c5 {[%clk 0:02:54.7]} 8. g3 {[%clk
0:03:00.7]} 8... Bg7 {[%clk 0:02:51.8]} 9. Bg2 {[%clk 0:02:53.6]} 9... O-O
{[%clk 0:02:51.9]} 10. e3 {[%clk 0:02:50.8]} 10... f5 {[%clk 0:02:52.2]} 11.
Nge2 {[%clk 0:02:50.8]} 11... Nc6 {[%clk 0:02:51.5]} 12. O-O {[%clk 0:02:49.1]}
12... Rd8 {[%clk 0:02:49.7]} 13. b4 {[%clk 0:02:33.5]} 13... cxb4 {[%clk
0:02:46.2]} 14. axb4 {[%clk 0:02:34.4]} 14... Qxb4 {[%clk 0:02:46.6]} 15. d4
{[%clk 0:02:32.6]} 15... Qd6 {[%clk 0:02:37.7]} 16. Nf4 {[%clk 0:02:20.2]} 16...
Bd7 {[%clk 0:02:35.7]} 17. Qb3 {[%clk 0:02:09.4]} 17... b6 {[%clk 0:02:29.6]}
18. Nb5 {[%clk 0:01:53.7]} 18... Qf8 {[%clk 0:02:20.6]} 19. Rfc1 {[%clk
0:01:44]} 19... Na5 {[%clk 0:02:20.4]} 20. Rxa5 {[%clk 0:01:16.1]} 20... bxa5
{[%clk 0:02:21.3]} 21. Bxa8 {[%clk 0:01:15.5]} 21... Rxa8 {[%clk 0:02:21.8]} 22.
Rc7 {[%clk 0:01:14.3]} 22... Qd8 {[%clk 0:02:09.8]} 23. Qd5 {[%clk 0:00:22.1]}
23... Be8 {[%clk 0:01:49.3]} 24. Qxd8 {[%clk 0:00:16.4]} 24... Rxd8 {[%clk
0:01:50.2]} 25. Nc3 {[%clk 0:00:16.3]} 25... Ra8 {[%clk 0:01:43.8]} 26. Rc5
{[%clk 0:00:13.5]} 26... Bf8 {[%clk 0:01:42.4]} 27. Rc4 {[%clk 0:00:05.7]} 27...
Rb8 {[%clk 0:01:42.9]} 28. Nfd5 {[%clk 0:00:02.1]} 28... Kg7 {[%clk 0:01:42.5]}
29. Rc7 {[%clk 0:00:01.6]} 29... a4 {[%clk 0:01:36.3]} 0-1

[Event "*** SCC Grand Prix: Titled Tuesday Blitz"]
[Site "Chess.com"]
[Date "2020.08.11"]
[Round "8"]
[White "swimmerchess"]
[Black "BocharovD"]
[Result "1-0"]
[WhiteElo "2838"]
[BlackElo "2707"]
[TimeControl "180+1"]
[EndTime "11:32:45 PDT"]
[Termination "swimmerchess won by resignation"]

1. e4 {[%clk 0:03:00.9]} 1... c5 {[%clk 0:02:59.2]} 2. Nf3 {[%clk 0:03:00.6]}
2... e6 {[%clk 0:02:59.8]} 3. d4 {[%clk 0:03:01.2]} 3... cxd4 {[%clk 0:03:00.7]}
4. Nxd4 {[%clk 0:03:02.1]} 4... a6 {[%clk 0:02:59]} 5. Nc3 {[%clk 0:03:02.1]}
5... Qc7 {[%clk 0:02:58.7]} 6. Bd3 {[%clk 0:03:01.9]} 6... Nf6 {[%clk
0:02:58.2]} 7. O-O {[%clk 0:03:01.7]} 7... d6 {[%clk 0:02:58.2]} 8. Bd2 {[%clk
0:02:59.8]} 8... Be7 {[%clk 0:02:36.2]} 9. Qe2 {[%clk 0:02:58.8]} 9... O-O
{[%clk 0:02:35]} 10. Kh1 {[%clk 0:02:55.9]} 10... Nbd7 {[%clk 0:02:30]} 11. a4
{[%clk 0:02:51.8]} 11... b6 {[%clk 0:02:26.7]} 12. Rae1 {[%clk 0:02:50.4]} 12...
Bb7 {[%clk 0:02:26.4]} 13. b4 {[%clk 0:02:34.3]} 13... Ne5 {[%clk 0:02:06.7]}
14. f4 {[%clk 0:02:31.8]} 14... Nxd3 {[%clk 0:02:00.4]} 15. cxd3 {[%clk
0:02:32.7]} 15... Qd7 {[%clk 0:01:52.2]} 16. g4 {[%clk 0:02:25.4]} 16... g6
{[%clk 0:01:26.8]} 17. g5 {[%clk 0:01:45.9]} 17... Ne8 {[%clk 0:00:57.9]} 18.
Rf3 {[%clk 0:01:45.6]} 18... Ng7 {[%clk 0:00:56.5]} 19. Ref1 {[%clk 0:01:39.4]}
19... f5 {[%clk 0:00:41.4]} 20. gxf6 {[%clk 0:01:32.9]} 20... Bxf6 {[%clk
0:00:40.6]} 21. Be3 {[%clk 0:01:33.6]} 21... Rac8 {[%clk 0:00:40.4]} 22. Qb2
{[%clk 0:01:18.9]} 22... e5 {[%clk 0:00:33.5]} 23. fxe5 {[%clk 0:01:16.3]} 23...
Bxe5 {[%clk 0:00:28.2]} 24. Qb3+ {[%clk 0:01:15.6]} 24... Kh8 {[%clk 0:00:27.4]}
25. Rxf8+ {[%clk 0:01:15.4]} 1-0

[Event "*** SCC Grand Prix: Titled Tuesday Blitz"]
[Site "Chess.com"]
[Date "2020.08.11"]
[Round "8"]
[White "mr65"]
[Black "WonderChampion"]
[Result "1-0"]
[WhiteElo "2146"]
[BlackElo "1977"]
[TimeControl "180+1"]
[EndTime "11:32:53 PDT"]
[Termination "mr65 won by checkmate"]

1. e4 {[%clk 0:03:00.9]} 1... c5 {[%clk 0:02:58.7]} 2. Nf3 {[%clk 0:03:00.8]}
2... g6 {[%clk 0:02:58]} 3. d4 {[%clk 0:02:59.2]} 3... cxd4 {[%clk 0:02:58.9]}
4. Qxd4 {[%clk 0:02:58.2]} 4... Nf6 {[%clk 0:02:54.3]} 5. e5 {[%clk 0:02:57.8]}
5... Nc6 {[%clk 0:02:51.4]} 6. Qa4 {[%clk 0:02:57.3]} 6... Nd5 {[%clk
0:02:42.5]} 7. Qe4 {[%clk 0:02:56.6]} 7... Nc7 {[%clk 0:02:40.6]} 8. Nc3 {[%clk
0:02:55.6]} 8... Bg7 {[%clk 0:02:31.8]} 9. Bf4 {[%clk 0:02:55.2]} 9... O-O
{[%clk 0:02:29.9]} 10. O-O-O {[%clk 0:02:52.1]} 10... Ne6 {[%clk 0:02:19.6]} 11.
h4 {[%clk 0:02:45.5]} 11... h5 {[%clk 0:02:12.4]} 12. Bg5 {[%clk 0:02:36.5]}
12... Nc5 {[%clk 0:01:53.7]} 13. Qe3 {[%clk 0:02:31.4]} 13... Ne6 {[%clk
0:01:47.6]} 14. Bh6 {[%clk 0:02:30.6]} 14... Kh7 {[%clk 0:01:42]} 15. Bxg7
{[%clk 0:02:29.5]} 15... Kxg7 {[%clk 0:01:42.9]} 16. Bd3 {[%clk 0:02:15.9]}
16... d6 {[%clk 0:01:35.8]} 17. exd6 {[%clk 0:02:13.1]} 17... exd6 {[%clk
0:01:36.7]} 18. g4 {[%clk 0:01:54.5]} 18... hxg4 {[%clk 0:01:30]} 19. h5 {[%clk
0:01:52.1]} 19... gxf3 {[%clk 0:01:08.2]} 20. hxg6 {[%clk 0:01:51.3]} 20... Qg5
{[%clk 0:01:06.8]} 21. Rh7+ {[%clk 0:01:40.9]} 21... Kg8 {[%clk 0:01:04.1]} 22.
Rdh1 {[%clk 0:01:20]} 22... fxg6 {[%clk 0:00:53.8]} 23. Nd5 {[%clk 0:00:38.1]}
23... Qxe3+ {[%clk 0:00:42.4]} 24. fxe3 {[%clk 0:00:36.9]} 24... Ne5 {[%clk
0:00:39.2]} 25. Ne7# {[%clk 0:00:31.6]} 1-0

[Event "*** SCC Grand Prix: Titled Tuesday Blitz"]
[Site "Chess.com"]
[Date "2020.08.11"]
[Round "8"]
[White "Beca95"]
[Black "Shahinyan_ChessMood"]
[Result "1-0"]
[WhiteElo "2884"]
[BlackElo "2709"]
[TimeControl "180+1"]
[EndTime "11:32:54 PDT"]
[Termination "Beca95 won on time"]

1. d4 {[%clk 0:03:00.9]} 1... Nf6 {[%clk 0:02:58.2]} 2. c4 {[%clk 0:03:01.5]}
2... c5 {[%clk 0:02:58.1]} 3. d5 {[%clk 0:03:00.8]} 3... e6 {[%clk 0:02:58.2]}
4. Nc3 {[%clk 0:03:00.2]} 4... exd5 {[%clk 0:02:59.1]} 5. cxd5 {[%clk
0:03:00.7]} 5... d6 {[%clk 0:02:59.6]} 6. Nf3 {[%clk 0:03:01.3]} 6... g6 {[%clk
0:02:58.9]} 7. Bg5 {[%clk 0:03:01.9]} 7... a6 {[%clk 0:02:55.1]} 8. e4 {[%clk
0:03:00.9]} 8... b5 {[%clk 0:02:45.2]} 9. Nd2 {[%clk 0:03:00.7]} 9... Bg7 {[%clk
0:02:38.6]} 10. Qc2 {[%clk 0:03:00.9]} 10... O-O {[%clk 0:02:36.2]} 11. a4
{[%clk 0:03:01]} 11... b4 {[%clk 0:02:28.1]} 12. Nd1 {[%clk 0:03:01.1]} 12...
Nbd7 {[%clk 0:02:19.5]} 13. Ne3 {[%clk 0:02:59.9]} 13... Re8 {[%clk 0:02:06.6]}
14. Be2 {[%clk 0:02:58.8]} 14... Qc7 {[%clk 0:01:47.3]} 15. O-O {[%clk
0:02:57.6]} 15... b3 {[%clk 0:01:38.7]} 16. Qb1 {[%clk 0:02:57.5]} 16... Rb8
{[%clk 0:01:36.4]} 17. Rc1 {[%clk 0:02:56.7]} 17... Rb4 {[%clk 0:01:35.3]} 18.
f3 {[%clk 0:02:56.9]} 18... h6 {[%clk 0:01:28.6]} 19. Bh4 {[%clk 0:02:56]} 19...
Nh5 {[%clk 0:01:27.4]} 20. Bf1 {[%clk 0:02:54.6]} 20... f5 {[%clk 0:01:22.4]}
21. Bf2 {[%clk 0:02:52]} 21... fxe4 {[%clk 0:01:20.3]} 22. Nxe4 {[%clk
0:02:50.2]} 22... Kh7 {[%clk 0:01:03.2]} 23. Rc4 {[%clk 0:02:49.1]} 23... Ndf6
{[%clk 0:00:46.8]} 24. Nd2 {[%clk 0:02:44.6]} 24... Bb7 {[%clk 0:00:38.2]} 25.
Rxb4 {[%clk 0:02:42.9]} 25... cxb4 {[%clk 0:00:39.1]} 26. Nxb3 {[%clk
0:02:43.1]} 26... Nxd5 {[%clk 0:00:36.2]} 27. Nxd5 {[%clk 0:02:43.3]} 27... Bxd5
{[%clk 0:00:37.1]} 28. Qd1 {[%clk 0:02:43.7]} 28... Qf7 {[%clk 0:00:34.7]} 29.
Nd4 {[%clk 0:02:43.5]} 29... a5 {[%clk 0:00:29.5]} 30. Rc1 {[%clk 0:02:42.7]}
30... Nf4 {[%clk 0:00:28.3]} 31. Qd2 {[%clk 0:02:41.1]} 31... Ne6 {[%clk
0:00:25.9]} 32. Nb5 {[%clk 0:02:39.6]} 32... Be5 {[%clk 0:00:23.9]} 33. Re1
{[%clk 0:02:27.8]} 33... Nf4 {[%clk 0:00:16.1]} 34. Kh1 {[%clk 0:02:18.3]} 34...
h5 {[%clk 0:00:08.5]} 35. Bg3 {[%clk 0:02:16.1]} 35... g5 {[%clk 0:00:05.6]} 36.
Bxf4 {[%clk 0:02:11]} 36... Bxf4 {[%clk 0:00:04.3]} 37. Qd3+ {[%clk 0:02:10.9]}
37... Kg7 {[%clk 0:00:02.3]} 38. Rxe8 {[%clk 0:02:10.6]} 38... Qxe8 {[%clk
0:00:03.2]} 39. Qxd5 {[%clk 0:02:10.6]} 39... Qe1 {[%clk 0:00:04.1]} 40. Qd3
{[%clk 0:02:09.2]} 40... Qh4 {[%clk 0:00:04.6]} 41. g3 {[%clk 0:02:08.6]} 41...
Bxg3 {[%clk 0:00:04.5]} 42. Qe2 {[%clk 0:02:08.7]} 42... Be5 {[%clk 0:00:04]}
43. Nc7 {[%clk 0:02:08.1]} 43... Kf7 {[%clk 0:00:02.8]} 44. Nd5 {[%clk
0:02:06.8]} 44... Qd4 {[%clk 0:00:01.9]} 45. Ne3 {[%clk 0:02:04.6]} 1-0